fUSD/lending_fUSD_20260408
["ID","MTS","AMOUNT","RATE_DAILY","PERIOD"]
[420024891,1775622660016,-2250.0,0.00026073,30]
[420024892,1775622660025,-2226.0,0.00026073,30]
[420024893,1775622660044,-739.79,0.00026085,30]
[420024894,1775622660056,-200.0,0.00026086,30]
[420024895,1775622660066,-288.0,0.00026086,30]
[420024896,1775622660076,-500.0,0.00026298,120]
[420024897,1775622660086,-450.0,0.0002655,120]
[420024898,1775622660096,-450.0,0.0002655,120]
[420024899,1775622660106,-321.0,0.0002655,120]
[420024900,1775622660116,-368.0,0.00026551,120]
[420024901,1775622660126,-221.0,0.00026551,120]
[420024902,1775622660135,-166.0,0.00026551,120]
[420024903,1775622660144,-166.0,0.00026551,120]
[420024904,1775622660155,-292.3100366,0.00026667,7]
[420024905,1775622660165,-203.6649839,0.00026667,5]
[420024906,1775622660175,-2132.78,0.00026676,2]
[420024907,1775622660185,-2800.0,0.00026686,7]
[420024908,1775622660195,-1100.0,0.00026686,7]
[420024909,1775622660206,-400.0,0.000267,9]
[420024910,1775622660217,-400.0,0.000268,9]
[420024911,1775622660227,-400.0,0.000269,9]
[420024912,1775622660238,-507.0,0.00026905,13]
[420024913,1775622660248,-152.0,0.00026907,6]
[420024914,1775622660257,-6022.0,0.00026928,2]
[420024915,1775622660267,-622.0,0.00026928,2]
[420024916,1775622660276,-500.96828797,0.00027,60]
[420024917,1775622660286,-160.0,0.00027,30]
[420024918,1775622660296,-150.0,0.00027,2]
[420024919,1775622660306,-600.0,0.00027,2]
[420024920,1775622660316,-704.68821068,0.00027,2]
[420024921,1775622660326,-176.46613302,0.00027,2]
[420024922,1775622660337,-1159.0,0.00027,2]
[420024923,1775622660347,-5471.45900555,0.00027,2]
[420024924,1775622660357,-3469.61009304,0.00027,2]
[420024925,1775622660367,-1292.0,0.00027,2]
[420024926,1775622660377,-978.89743861,0.00027,2]
[420024927,1775622660388,-1382.55237078,0.00027,2]
[420024928,1775622660399,-637.5743,0.000271,2]
[420024929,1775622660409,-150.0,0.00027185,2]
[420024930,1775622660419,-825.0,0.00027231,60]
[420024931,1775622660429,-1000.0,0.00027234,3]
[420024932,1775622660440,-427.86896382,0.000273,2]
[420024933,1775622660450,-226.06643133,0.000273,30]
[420024934,1775622660459,-226.06643131,0.000273,30]
[420024935,1775622660469,-4470.13257384,0.0002739,7]
[420024936,1775622660479,-30000.0,0.00027397,2]
[420024937,1775622660489,-102143.63951787,0.00027397,10]
[420024938,1775622660499,-593.38,0.00027397,120]
[420024939,1775622660508,-151.0,0.00027397,7]
[420024940,1775622660518,-560.80847937,0.00027397,2]
[420024941,1775622660527,-916.91,0.00027397,120]
[420024942,1775622660538,-1000.0,0.00027397,4]
[420024943,1775622660548,-1000.0,0.00027397,4]
[420024944,1775622660558,-1000.0,0.00027397,4]
[420024945,1775622660567,-1000.0,0.00027397,4]
[420024946,1775622660578,-1000.0,0.00027397,4]
[420024947,1775622660588,-1000.0,0.00027397,4]
[420024948,1775622660598,-1000.0,0.00027397,4]
[420024949,1775622660608,-1000.0,0.00027397,4]
[420024950,1775622660618,-500.0,0.00027397,2]
[420024951,1775622660628,-500.0,0.00027397,2]
[420024952,1775622660638,-383.03666175,0.00027397,7]
[420024953,1775622660648,-1000.0,0.00027397,4]
[420024954,1775622660659,-1000.0,0.00027397,4]
[420024955,1775622660669,-1069.72946307,0.00027397,4]
[420024956,1775622660679,-1000.0,0.00027397,20]
[420024957,1775622660689,-624.50920028,0.00027397,2]
[420024958,1775622660699,-300.0,0.00027397,2]
[420024959,1775622660709,-528.24,0.00027397,2]
[420024960,1775622660718,-222.664567,0.00027397,2]
[420024961,1775622660729,-222.664567,0.00027397,2]
[420024962,1775622660739,-222.664567,0.00027397,2]
[420024963,1775622660749,-222.664567,0.00027397,2]
[420024964,1775622660760,-222.664567,0.00027397,2]
[420024965,1775622660770,-222.664567,0.00027397,2]
[420024966,1775622660781,-222.664567,0.00027397,2]
[420024967,1775622660791,-222.664567,0.00027397,2]
[420024968,1775622660800,-952.790729,0.00027397,2]
[420024969,1775622660810,-952.790729,0.00027397,2]
[420024970,1775622660820,-952.790729,0.00027397,2]
[420024971,1775622660830,-952.790729,0.00027397,2]
[420024972,1775622660840,-952.790729,0.00027397,2]
[420024973,1775622660850,-952.790729,0.00027397,2]
[420024974,1775622660860,-952.790729,0.00027397,2]
[420024975,1775622660870,-952.790729,0.00027397,2]
[420024976,1775622660879,-952.790729,0.00027397,2]
[420024977,1775622660888,-952.790729,0.00027397,2]
[420024978,1775622660904,-952.790729,0.00027397,2]
[420024979,1775622660914,-952.790729,0.00027397,2]
[420024980,1775622660924,-151.0,0.00027397,2]
[420024981,1775622660935,-151.680732,0.00027397,2]
[420024982,1775622660944,-10370.67,0.00027397,10]
[420024983,1775622660955,-13205.32,0.00027397,10]
[420024984,1775622660964,-150.0,0.00027397,5]
[420024985,1775622660974,-500.0,0.00027397,5]
[420024986,1775622660984,-2517329.6046773,0.000274,2]
[420024987,1775622661098,-306.0,0.0001074,2]
[420024988,1775622661108,-1000.0,0.00013699,15]
[420024989,1775622661118,-294.885157,0.0001589,2]
[420024990,1775622661129,-151.0,0.00021918,2]
[420024991,1775622661139,-151.0,0.00021918,2]
[420024992,1775622661150,-1046.0,0.00023933,2]
[420024993,1775622661160,-16649.13898667,0.000274,2]
[420024994,1775622661186,-151.0,0.00021918,2]
[420024995,1775622661196,-1046.0,0.00026933,2]
[420024996,1775622661207,-424.76395409,0.000274,2]
[420024997,1775622661302,-151.0,0.00021918,2]
[420024998,1775622661313,-151.0,0.00021918,2]
[420024999,1775622661324,-151.0,0.00021918,2]
[420025000,1775622661334,-151.0,0.00021918,2]
[420025001,1775622661344,-151.0,0.00021918,2]
[420025002,1775622661353,-151.0,0.00021918,2]
[420025003,1775622661365,-151.0,0.00021918,2]
[420025004,1775622661376,-2847.92873196,0.000274,2]
[420025005,1775622661389,-620.335002,0.000274,2]
[420025006,1775622661402,-1930.59892602,0.000274,2]
[420025007,1775622661422,-1531.04928,0.000274,2]
[420025008,1775622661435,-715.2085,0.000274,2]
[420025009,1775622661447,-1056.1642,0.000274,2]
[420025010,1775622664072,1874.30292598,0.0001065,2]
[420025011,1775622664108,5000.01,0.0001065,2]
[420025012,1775622664132,4279.33427402,0.0001065,2]
[420025013,1775622664437,720.67572598,7.887e-05,2]
[420025014,1775622664461,1022.32427402,7.887e-05,2]
[420025015,1775622664616,1743.0,8.887e-05,2]
[420025016,1775622664701,1743.0,9.887e-05,2]
[420025017,1775622664757,468.40724644,8.675e-05,2]
[420025018,1775622668178,23.27847954,0.0001065,2]
[420025019,1775622668204,5000.01,0.0001065,2]
[420025020,1775622668230,5000.01,0.0001065,2]
[420025021,1775622668255,5000.01,0.0001065,2]
[420025022,1775622668280,5000.01,0.0001065,2]
[420025023,1775622668304,5000.01,0.0001065,2]
[420025024,1775622668329,5000.01,0.0001065,2]
[420025025,1775622668357,5000.01,0.0001065,2]
[420025026,1775622668382,5000.01,0.0001065,2]
[420025027,1775622668407,5000.01,0.0001065,2]
[420025028,1775622668438,9036.01,0.0001065,2]
[420025029,1775622668463,10000.01,0.0001065,2]
[420025030,1775622668488,10000.01,0.0001065,2]
[420025031,1775622668512,10000.01,0.0001065,2]
[420025032,1775622668536,10000.01,0.0001065,2]
[420025033,1775622668562,10000.01,0.0001065,2]
[420025034,1775622668590,10000.01,0.0001065,2]
[420025035,1775622668616,10000.01,0.0001065,2]
[420025036,1775622668642,10000.01,0.0001065,2]
[420025037,1775622668670,10000.01,0.0001065,2]
[420025038,1775622682693,-864.72555675,0.0001065,2]
[420025039,1775622682759,-10000.01,0.0001065,2]
[420025040,1775622682882,-10000.01,0.0001065,2]
[420025041,1775622683046,-10000.01,0.0001065,2]
[420025042,1775622683090,-10000.01,0.0001065,2]
[420025043,1775622683178,-10000.01,0.0001065,2]
[420025044,1775622683268,-10000.01,0.0001065,2]
[420025045,1775622683391,-10000.01,0.0001065,2]
[420025046,1775622683512,-10000.01,0.0001065,2]
[420025047,1775622683639,-10000.01,0.0001065,2]
[420025048,1775622688532,-10000.01,0.0001065,2]
[420025049,1775622689002,-3574.01,0.0001065,2]
[420025050,1775622689089,-5000.01,0.0001065,2]
[420025051,1775622691142,-5000.01,0.0001065,2]
[420025052,1775622691287,-5000.01,0.0001065,2]
[420025053,1775622691411,-5000.01,0.0001065,2]
[420025054,1775622691504,-5000.01,0.0001065,2]
[420025055,1775622691593,-5000.01,0.0001065,2]
[420025056,1775622691705,-5000.01,0.0001065,2]
[420025057,1775622691886,-5000.01,0.0001065,2]
[420025058,1775622692034,-5000.01,0.0001065,2]
[420025059,1775622694188,-5000.01,0.0001065,2]
[420025060,1775622694556,-10000.01,0.0001065,2]
[420025061,1775622807551,-350.7904,0.000106,2]
[420025062,1775622807582,-200.0,0.000106,3]
[420025063,1775622807614,-250.0,0.00010622,2]
[420025064,1775622807644,-3464.0,0.0001063,2]
[420025065,1775622807675,-151.0,0.00010647,2]
[420025066,1775622807704,-151.0,0.00010647,2]
[420025067,1775622807736,-300.0,0.00010648,2]
[420025068,1775622807769,-116.4292,0.00010648,2]
[420025069,1775622807921,-33.5708,0.00010648,2]
[420025070,1775622813272,-300.0,0.00010648,2]
[420025071,1775622813304,-250.0,0.00010649,2]
[420025072,1775622813336,-500.0,0.00010649,2]
[420025073,1775622813373,-419.84836131,0.00010649,2]
[420025074,1775622813909,-326.16819813,0.00010649,2]
[420025075,1775622813940,-500.0,0.00010649,2]
[420025076,1775622813970,-500.0,0.00010649,2]
[420025077,1775622814001,-500.0,0.00010649,2]
[420025078,1775622814031,-500.0,0.00010649,2]
[420025079,1775622814062,-161.76669541,0.00010649,2]
[420025080,1775622814092,-434.70747857,0.00010649,2]
[420025081,1775622814123,-500.0,0.00010649,2]
[420025082,1775622814448,-215.02853316,0.00010649,2]
[420025083,1775622819000,-284.97146684,0.00010649,2]
[420025084,1775622819031,-500.0,0.00010649,2]
[420025085,1775622819062,-500.0,0.00010649,2]
[420025086,1775622819092,-500.0,0.00010649,2]
[420025087,1775622819123,-442.21605325,0.00010649,2]
[420025088,1775622819153,-500.0,0.00010649,2]
[420025089,1775622819181,-500.0,0.00010649,2]
[420025090,1775622819215,-500.0,0.00010649,2]
[420025091,1775622819242,-500.0,0.00010649,2]
[420025092,1775622819270,-500.0,0.00010649,2]
[420025093,1775622819299,-45.63495982,0.00010649,2]
[420025094,1775622819818,-454.36504018,0.00010649,2]
[420025095,1775622825358,-3826.437556,0.00010595,2]
[420025096,1775622825388,-500.0,0.00010649,2]
[420025097,1775622825418,-500.0,0.00010649,2]
[420025098,1775622825502,-347.134888,0.00010649,2]
[420025099,1775622831474,-305.0,0.00010649,2]
[420025100,1775622831508,-152.865112,0.00010649,2]
[420025101,1775622831538,-500.0,0.00010649,2]
[420025102,1775622831567,-433.99301429,0.00010649,2]
[420025103,1775622831602,-500.0,0.00010649,2]
[420025104,1775622831631,-360.03562682,0.00010649,2]
[420025105,1775622831662,-500.0,0.00010649,2]
[420025106,1775622831696,-500.0,0.00010649,2]
[420025107,1775622831726,-300.0,0.00010649,2]
[420025108,1775622831760,-500.0,0.00010649,2]
[420025109,1775622831795,-500.0,0.00010649,2]
[420025110,1775622831825,-396.22249378,0.00010649,2]
[420025111,1775622832005,-103.77750622,0.00010649,2]
[420025112,1775622853464,-300.0,0.00010549,2]
[420025113,1775622853496,-250.0,0.00010549,2]
[420025114,1775622853528,-1796.573939,0.0001055,2]
[420025115,1775622853609,-5306.862122,0.0001055,2]
[420025116,1775622863945,-970.1807365,0.0001055,2]
[420025117,1775622863973,-255.34786142,0.0001055,2]
[420025118,1775622864001,-500.0,0.00010649,2]
[420025119,1775622864034,-500.0,0.00010649,2]
[420025120,1775622864066,-500.0,0.00010649,2]
[420025121,1775622864095,-500.0,0.00010649,2]
[420025122,1775622864130,-500.0,0.00010649,2]
[420025123,1775622864158,-173.595355,0.00010649,2]
[420025124,1775622864192,-500.0,0.00010649,2]
[420025125,1775622864227,-500.0,0.00010649,2]
[420025126,1775622864444,-201.76209416,0.00010649,2]
[420025127,1775622942859,-10000.01,0.00010381,2]
[420025128,1775622943002,-2473.95,0.00010381,2]
[420025129,1775622943028,-5052.11,0.00010381,2]
[420025130,1775622945757,-2539.45,0.00010421,2]
[420025131,1775622945782,-4921.11,0.00010421,2]
[420025132,1775623042959,-267.15,0.00010287,2]
[420025133,1775623042981,-732.85,0.00010309,2]
[420025134,1775623044405,-1000.0,0.00010309,2]
[420025135,1775623046088,-1000.0,0.00010309,2]
[420025136,1775623047026,-1000.0,0.00010309,2]
[420025137,1775623048005,-1000.0,0.00010309,2]
[420025138,1775623048994,-1000.0,0.00010309,2]
[420025139,1775623049942,-1000.0,0.00010235,2]
[420025140,1775623051265,-1000.0,0.00010235,2]
[420025141,1775623052161,-1000.0,0.00010235,2]
[420025142,1775623053295,-1000.0,0.00010235,2]
[420025143,1775623053684,-1000.0,0.00010235,2]
[420025144,1775623053979,-1000.0,0.00010235,2]
[420025145,1775623054305,-1000.0,0.00010235,2]
[420025146,1775623054716,-1000.0,0.00010235,2]
[420025147,1775623055208,-1000.0,0.00010235,2]
[420025148,1775623055472,-1000.0,0.00010235,2]
[420025149,1775623055807,-584.858421,0.00010235,2]
[420025150,1775623055831,-415.141579,0.00010309,2]
[420025151,1775623057480,-1000.0,0.00010309,2]
[420025152,1775623057572,-1000.0,0.00010309,2]
[420025153,1775623057695,-852.958421,0.00010309,2]
[420025154,1775623057718,-147.041579,0.00010546,2]
[420025155,1775623057848,-152.958421,0.00010546,2]
[420025156,1775623057871,-303.0,0.00010547,2]
[420025157,1775623057893,-544.041579,0.0001055,2]
[420025158,1775623057978,-653.67438034,0.0001055,2]
[420025159,1775623058001,-170.23190762,0.0001055,2]
[420025160,1775623058025,-176.09371204,0.0001055,2]
[420025161,1775623058287,-96.5606858,0.0001055,2]
[420025162,1775623058310,-150.0,0.000106,2]
[420025163,1775623058334,-753.4393142,0.00010636,2]
[420025164,1775623059114,-446.5606858,0.00010636,2]
[420025165,1775623059139,-293.0,0.00010636,2]
[420025166,1775623059163,-260.4393142,0.00010636,2]
[420025167,1775623059552,-39.5606858,0.00010636,2]
[420025168,1775623059575,-960.4393142,0.00010637,2]
[420025169,1775623060079,-1000.0,0.00010637,2]
[420025170,1775623060511,-1000.0,0.00010637,2]
[420025171,1775623060959,-1000.0,0.00010637,2]
[420025172,1775623061144,-1000.0,0.00010637,2]
[420025173,1775623061375,-1000.0,0.00010637,2]
[420025174,1775623063409,-1000.0,0.00010637,2]
[420025175,1775623064368,-1000.0,0.00010637,2]
[420025176,1775623064702,-1000.0,0.00010637,2]
[420025177,1775623065083,-1000.0,0.00010637,2]
[420025178,1775623065402,-1000.0,0.00010637,2]
[420025179,1775623065717,-1000.0,0.00010637,2]
[420025180,1775623066151,-303.4527539,0.00010637,2]
[420025181,1775623066175,-151.0,0.00010644,2]
[420025182,1775623066199,-151.0,0.00010644,2]
[420025183,1775623066223,-151.0,0.00010644,2]
[420025184,1775623066248,-151.0,0.00010644,2]
[420025185,1775623066273,-92.5472461,0.00010644,2]
[420025186,1775623066601,-58.4527539,0.00010644,2]
[420025187,1775623066625,-500.0,0.00010644,2]
[420025188,1775623066649,-151.0,0.00010644,2]
[420025189,1775623066673,-290.5472461,0.00010644,2]
[420025190,1775623068752,-209.4527539,0.00010644,2]
[420025191,1775623068777,-151.0,0.00010644,2]
[420025192,1775623068800,-500.0,0.00010644,2]
[420025193,1775623068823,-139.5472461,0.00010644,2]
[420025194,1775623068895,-360.4527539,0.00010644,2]
[420025195,1775623068919,-151.0,0.00010644,2]
[420025196,1775623068941,-488.5472461,0.00010644,2]
[420025197,1775623071969,-11.4527539,0.00010644,2]
[420025198,1775623071993,-151.0,0.00010644,2]
[420025199,1775623072015,-200.0,0.00010644,2]
[420025200,1775623072038,-500.0,0.00010644,2]
[420025201,1775623072062,-137.5472461,0.00010644,2]
[420025202,1775623072389,-13.4527539,0.00010644,2]
[420025203,1775623072412,-151.0,0.00010644,2]
[420025204,1775623072434,-500.0,0.00010644,2]
[420025205,1775623072457,-151.0,0.00010644,2]
[420025206,1775623072479,-184.5472461,0.00010644,2]
[420025207,1775623072848,-315.4527539,0.00010644,2]
[420025208,1775623072871,-500.0,0.00010644,2]
[420025209,1775623072895,-151.0,0.00010644,2]
[420025210,1775623072917,-33.5472461,0.00010644,2]
[420025211,1775623073285,-466.4527539,0.00010644,2]
[420025212,1775623073309,-151.0,0.00010644,2]
[420025213,1775623073331,-382.5472461,0.00010644,2]
[420025214,1775623073697,-117.4527539,0.00010644,2]
[420025215,1775623073722,-151.0,0.00010644,2]
[420025216,1775623073746,-500.0,0.00010644,2]
[420025217,1775623073769,-231.5472461,0.00010644,2]
[420025218,1775623074163,-268.4527539,0.00010644,2]
[420025219,1775623074186,-500.0,0.00010644,2]
[420025220,1775623074209,-231.5472461,0.00010644,2]
[420025221,1775623074610,-268.4527539,0.00010644,2]
[420025222,1775623074633,-274.64559216,0.00010644,2]
[420025223,1775623074657,-456.90165394,0.00010644,2]
[420025224,1775623075078,-43.09834606,0.00010644,2]
[420025225,1775623075102,-500.0,0.00010644,2]
[420025226,1775623075473,-456.90165394,0.00010644,2]
[420025227,1775623075549,-43.09834606,0.00010644,2]
[420025228,1775623075573,-500.0,0.00010644,2]
[420025229,1775623075598,-456.90165394,0.00010644,2]
[420025230,1775623085925,-1067.94,0.0001055,2]
[420025231,1775623102929,-198.93516706,0.00010544,2]
[420025232,1775623108794,198.93516704,0.00010547,2]
[420025233,1775623114756,198.93516704,0.00010549,2]
[420025234,1775623120104,200.0,0.00010247,2]
[420025235,1775623133041,500.0,0.00010245,2]
[420025236,1775623141152,300.0,0.00010549,2]
[420025237,1775623141516,300.0,0.00010549,2]
[420025238,1775623141671,300.0,0.00010549,2]
[420025239,1775623166367,-170.2319076,0.0001055,2]
[420025240,1775623166398,-798.47730622,0.0001055,2]
[420025241,1775623166899,-303.0,0.0001055,2]
[420025242,1775623205381,3828.715239,0.0001055,2]
[420025243,1775623230688,170.2319076,0.0001055,2]
[420025244,1775623239229,2943.39,9.835e-05,2]
[420025245,1775623247463,514.25442576,0.00010549,2]
[420025246,1775623247489,6261.16767424,0.00010549,2]
[420025247,1775623250566,532.31820414,0.0001055,2]
[420025248,1775623263310,303.0,0.0001055,2]
[420025249,1775623322377,2903.52412162,0.00010549,2]
[420025250,1775623322400,656.87897838,0.00010549,2]
[420025251,1775623325660,303.0,0.0001055,2]
[420025252,1775623325711,2552.476826,0.0001055,2]
[420025253,1775623329411,5660.9843,0.00010549,2]
[420025254,1775623380157,354.87880276,0.0001055,2]
[420025255,1775623406011,266.74996586,0.0001055,2]
[420025256,1775623441306,300.0,0.00010549,2]
[420025257,1775623449246,1701.65121732,0.0001055,2]
[420025258,1775623449393,303.0,0.0001055,2]
[420025259,1775623466134,152.0,6.805e-05,2]
[420025260,1775623468075,152.0,6.805e-05,2]
[420025261,1775623468159,152.0,6.805e-05,2]
[420025262,1775623468215,152.0,6.805e-05,2]
[420025263,1775623468269,152.0,6.805e-05,2]
[420025264,1775623468320,152.0,6.805e-05,2]
[420025265,1775623468381,152.0,6.805e-05,2]
[420025266,1775623468453,151.0,6.805e-05,2]
[420025267,1775623468503,151.0,6.805e-05,2]
[420025268,1775623468555,151.0,6.805e-05,2]
[420025269,1775623468777,151.0,6.805e-05,2]
[420025270,1775623473692,-2070.7998187,0.0001055,2]
[420025271,1775623473721,-2500.0,0.0001055,2]
[420025272,1775623473927,-4012.9504,0.0001055,2]
[420025273,1775623492745,1974.1092,0.0001055,2]
[420025274,1775623492769,2790.9279,0.0001055,2]
[420025275,1775623499424,2500.0,0.0001055,2]
[420025276,1775623503911,150.0,9.567e-05,2]
[420025277,1775623503982,150.0,9.78e-05,2]
[420025278,1775623504053,150.0,9.992e-05,2]
[420025279,1775623504088,150.0,0.00010205,2]
[420025280,1775623504148,150.0,0.00010418,2]
[420025281,1775623506611,150.0,9.567e-05,2]
[420025282,1775623506680,150.0,9.78e-05,2]
[420025283,1775623506737,150.0,9.992e-05,2]
[420025284,1775623506830,150.0,0.00010418,2]
[420025285,1775623506901,150.0,0.00010205,2]
[420025286,1775623507094,150.0,9.567e-05,2]
[420025287,1775623507145,150.0,9.78e-05,2]
[420025288,1775623507217,150.0,9.992e-05,2]
[420025289,1775623507274,150.0,0.00010205,2]
[420025290,1775623507351,150.0,0.00010418,2]
[420025291,1775623509535,2459.0821,9.799e-05,2]
[420025292,1775623509560,1584.0879,9.799e-05,2]
[420025293,1775623510730,150.0,9.567e-05,2]
[420025294,1775623510810,150.0,9.921e-05,2]
[420025295,1775623510869,150.0,0.00010276,2]
[420025296,1775623513177,150.0,9.567e-05,2]
[420025297,1775623514724,150.0,9.567e-05,2]
[420025298,1775623514759,150.0,9.7e-05,2]
[420025299,1775623514819,150.0,9.833e-05,2]
[420025300,1775623514863,150.0,9.966e-05,2]
[420025301,1775623514911,150.0,0.00010099,2]
[420025302,1775623514985,150.0,0.00010232,2]
[420025303,1775623515127,150.0,0.00010364,2]
[420025304,1775623515178,150.0,0.00010497,2]
[420025305,1775623519392,150.0,9.567e-05,2]
[420025306,1775623519460,150.0,9.744e-05,2]
[420025307,1775623519490,150.0,9.921e-05,2]
[420025308,1775623519551,150.0,0.00010099,2]
[420025309,1775623519624,150.0,0.00010276,2]
[420025310,1775623519694,150.0,0.00010453,2]
[420025311,1775623520746,236.58586852,0.0001055,2]
[420025312,1775623525040,150.00000001,9.567e-05,2]
[420025313,1775623527668,150.0,9.567e-05,2]
[420025314,1775623527720,150.0,0.00010099,2]
[420025315,1775623529594,150.0,9.567e-05,2]
[420025316,1775623529671,150.0,9.7e-05,2]
[420025317,1775623529740,150.0,9.833e-05,2]
[420025318,1775623529771,150.0,9.966e-05,2]
[420025319,1775623529828,150.0,0.00010099,2]
[420025320,1775623529900,150.0,0.00010232,2]
[420025321,1775623529972,150.0,0.00010364,2]
[420025322,1775623530044,150.0,0.00010497,2]
[420025323,1775623575241,1134.43414488,0.0001055,2]
[420025324,1775623648171,200.0,0.000105,3]
[420025325,1775623649658,166.66,9.947e-05,2]
[420025326,1775623649846,166.66,0.00010276,2]
[420025327,1775623653768,157.72391234,0.0001055,2]
[420025328,1775623661868,2003.85817425,0.00010543,2]
[420025329,1775623661892,496.14182575,0.00010543,2]
[420025330,1775623703947,756.28942992,0.0001055,2]
[420025331,1775623706663,331.85,0.00010506,2]
[420025332,1775623707336,400.0,0.00010513,2]
[420025333,1775623708075,180.73,0.00010513,2]
[420025334,1775623708730,400.0,0.00010521,2]
[420025335,1775623709429,346.66,0.00010521,2]
[420025336,1775623774491,-200.3541267,0.00010559,2]
[420025337,1775623774521,-303.0,0.0001056,2]
[420025338,1775623796709,177.83331056,0.0001055,2]
[420025339,1775623816446,8815.46843604,0.000105,2]
[420025340,1775623816471,1184.53156396,0.000105,2]
[420025341,1775623817898,1093.56499902,0.0001055,2]
[420025342,1775623826245,2425.2951,0.00010543,2]
[420025350,1775623832498,-160.46055602,0.0001057,2]
[420025351,1775623832508,-300.0,0.00010573,2]
[420025352,1775623832517,-300.0,0.00010573,2]
[420025353,1775623832527,-300.0,0.00010573,2]
[420025354,1775623832537,-300.0,0.00010573,2]
[420025355,1775623832546,-1200.0,0.00010573,2]
[420025356,1775623832555,-300.0,0.00010573,2]
[420025357,1775623832565,-1001.50560966,0.00010574,2]
[420025358,1775623832574,-150.0,0.00010574,2]
[420025359,1775623832583,-200.0,0.00010575,2]
[420025360,1775623832592,-500.0,0.00010575,2]
[420025361,1775623832602,-500.0,0.00010575,2]
[420025362,1775623832612,-500.0,0.00010575,2]
[420025363,1775623832622,-500.0,0.00010575,2]
[420025364,1775623832631,-500.0,0.00010575,2]
[420025365,1775623832641,-500.0,0.00010575,2]
[420025366,1775623832650,-200.0,0.00010575,2]
[420025367,1775623832660,-500.0,0.00010575,2]
[420025368,1775623832670,-585.11301317,0.00010575,2]
[420025369,1775623832681,-500.0,0.00010575,2]
[420025370,1775623832691,-500.0,0.00010575,2]
[420025371,1775623832701,-381.55477936,0.00010575,2]
[420025372,1775623832711,-500.0,0.00010575,2]
[420025373,1775623832721,-500.0,0.00010575,2]
[420025374,1775623832730,-500.0,0.00010575,2]
[420025375,1775623832740,-640.5469072,0.00010575,2]
[420025376,1775623832749,-500.0,0.00010575,2]
[420025377,1775623832759,-500.0,0.00010575,2]
[420025378,1775623832769,-500.0,0.00010575,2]
[420025379,1775623832779,-500.0,0.00010575,2]
[420025380,1775623832788,-500.0,0.00010575,2]
[420025381,1775623832802,-500.0,0.00010575,2]
[420025382,1775623832813,-500.0,0.00010575,2]
[420025383,1775623832823,-500.0,0.00010575,2]
[420025384,1775623832832,-500.0,0.00010575,2]
[420025385,1775623832841,-500.0,0.00010575,2]
[420025386,1775623832850,-500.0,0.00010575,2]
[420025387,1775623832859,-500.0,0.00010575,2]
[420025388,1775623832868,-500.0,0.00010575,2]
[420025389,1775623832878,-500.0,0.00010575,2]
[420025390,1775623832888,-500.0,0.00010575,2]
[420025391,1775623832897,-500.0,0.00010575,2]
[420025392,1775623832907,-500.0,0.00010575,2]
[420025393,1775623832917,-500.0,0.00010575,2]
[420025394,1775623832926,-500.0,0.00010575,2]
[420025395,1775623832936,-500.0,0.00010575,2]
[420025396,1775623832945,-500.0,0.00010575,2]
[420025397,1775623832955,-500.0,0.00010575,2]